bitfinex/quotes_ETHUSD_20250916
["timestamp","ask_amount","ask_price","bid_price","bid_amount"]
[1757995666152,10.7856466,4528.2,4528.1,1e-08]
[1757995668386,10.78567034,4528.2,4528.1,1e-08]
[1757995668764,11.22667034,4528.2,4528.1,1e-08]
[1757995669164,10.7493518,4528.2,4528.1,1e-08]
[1757995669482,11.22471638,4528.2,4528.1,1e-08]
[1757995670365,10.78371638,4528.2,4528.1,1e-08]
[1757995671496,10.78371638,4528.2,4528.1,0.00100001]
[1757995671988,10.78590869,4528.2,4528.1,0.00100001]
[1757995672389,11.82791442,4528.2,4528.1,0.00100001]
[1757995672591,11.38011442,4528.2,4528.1,0.00100001]
[1757995672788,11.06541442,4528.2,4528.1,0.00100001]
[1757995672982,11.06541442,4528.2,4528.1,0.48610001]
[1757995673184,8.06590087,4528.2,4528.1,0.48610001]
[1757995673390,10.47169514,4528.2,4528.1,0.48610001]
[1757995674397,11.06590087,4528.2,4528.1,0.48610001]
[1757995675595,11.06590087,4528.2,4528.1,0.00100001]
[1757995675596,11.79440087,4528.2,4528.1,0.00100001]
[1757995677292,11.20019514,4528.2,4528.1,0.00100001]
[1757995679701,10.47169514,4528.2,4528.1,0.49920001]
[1757995681676,10.76189514,4528.2,4528.1,0.00100001]
[1757995681880,11.66979514,4528.2,4528.1,0.00100001]
[1757995684392,12.46508518,4528.2,4528.1,0.00100001]
[1757995685642,12.46570821,4528.2,4528.1,0.00100001]
[1757995686351,7.59860821,4528.2,4528.1,0.49920001]
[1757995686515,10.47231817,4528.2,4528.1,0.49920001]
[1757995686834,10.91061817,4528.2,4528.1,0.49920001]
[1757995687035,10.91061817,4528.2,4528.1,0.00100001]
[1757995687424,12.46570821,4528.2,4528.1,0.00100001]
[1757995687936,12.4663592,4528.2,4528.1,0.00100001]
[1757995688121,11.9967592,4528.2,4528.1,0.00100001]
[1757995689838,11.2682592,4528.2,4528.1,0.81420001]
[1757995690431,11.2682592,4528.2,4528.1,0.49920001]
[1757995690616,11.5584592,4528.2,4528.1,0.49920001]
[1757995690810,11.5584592,4528.2,4528.1,0.00100001]
[1757995691741,12.4663592,4528.2,4528.1,0.00100001]
[1757995691921,11.67106916,4528.2,4528.1,0.00100001]
[1757995692271,12.86458843,4528.2,4528.1,0.00100001]
[1757995692546,11.91286862,4528.2,4528.1,0.00100001]
[1757995692712,2.20862689,4527.7,4527.6,0.001]
[1757995692908,12.38735364,4527.7,4527.6,0.001]
[1757995693137,13.58545364,4527.7,4527.6,0.001]
[1757995693335,14.45109,4527.7,4527.6,0.001]
[1757995696641,13.98149,4527.7,4527.6,0.001]
[1757995697062,13.98149,4527.7,4527.6,0.4992]
[1757995697252,12.45698609,4527.7,4527.6,0.4992]
[1757995698933,12.4573473,4527.7,4527.6,0.4992]
[1757995700273,12.4573473,4527.7,4527.6,0.8142]
[1757995701272,12.4563473,4527.7,4527.6,0.8142]
[1757995701839,12.45626979,4527.7,4527.6,0.8142]
[1757995703259,12.45621001,4527.7,4527.6,0.8142]
[1757995703461,12.45621001,4527.7,4527.6,0.4992]
[1757995705161,12.45620634,4527.7,4527.6,0.4992]
[1757995705885,12.45620699,4527.7,4527.6,0.4992]
[1757995707578,12.45620699,4527.7,4527.6,0.8081]
[1757995708108,13.22460699,4527.7,4527.6,0.001]
[1757995708259,13.70750699,4527.7,4527.6,0.001]
[1757995708679,13.58320326,4527.7,4527.6,0.001]
[1757995708890,13.70749474,4527.7,4527.6,0.001]
[1757995709191,13.70751612,4527.7,4527.6,0.001]
[1757995710665,13.22461612,4527.7,4527.6,0.001]
[1757995713187,13.70751612,4527.7,4527.6,0.001]
[1757995714405,12.45621612,4527.7,4527.6,0.001]
[1757995715176,13.22461612,4527.7,4527.6,0.001]
[1757995716206,14.02062003,4527.7,4527.6,0.001]
[1757995717205,13.25222003,4527.7,4527.6,0.4701]
[1757995717404,13.55812003,4527.7,4527.6,0.001]
[1757995717572,14.02062003,4527.7,4527.6,0.001]
[1757995717899,9.58322003,4527.7,4527.6,0.779]
[1757995718105,13.25222003,4527.7,4527.6,0.779]
[1757995719306,9.58322003,4527.7,4527.6,0.779]
[1757995719542,12.45621612,4527.7,4527.6,0.779]
[1757995719743,6.05938923,4527.7,4527.6,1.1695]
[1757995719893,11.59057976,4527.7,4527.6,1.1695]
[1757995722921,11.59057976,4527.7,4527.6,0.779]
[1757995724513,12.35897976,4527.7,4527.6,0.001]
[1757995724710,12.18738885,4527.7,4527.6,0.001]
[1757995724902,12.18738885,4527.7,4527.6,0.779]
[1757995725413,12.18738885,4527.7,4527.6,0.4701]
[1757995727823,12.49328885,4527.7,4527.6,0.001]
[1757995728019,12.95578885,4527.7,4527.6,0.001]
[1757995728244,13.43868885,4527.7,4527.6,0.001]
[1757995729322,12.84187976,4527.7,4527.6,0.001]
[1757995730115,12.84191823,4527.7,4527.6,0.001]
[1757995731468,43.63792214,4527.7,4527.6,0.001]
[1757995731667,2.2090172,4526.9,4526.8,0.08]
[1757995731818,9.89300854,4526.9,4526.8,0.08]
[1757995732017,10.20910854,4526.9,4526.8,0.08]
[1757995732360,11.62680854,4526.9,4526.8,0.08]
[1757995733656,11.62680854,4526.9,4526.8,0.5467]
[1757995733657,6.68970854,4526.9,4526.8,0.5467]
[1757995733859,11.15846364,4526.9,4526.8,0.5467]
[1757995734031,11.15846364,4526.9,4526.8,0.08]
[1757995734032,11.93196364,4526.9,4526.8,0.08]
[1757995734234,12.42556364,4526.9,4526.8,0.08]
[1757995735038,11.63080854,4526.9,4526.8,0.08]
[1757995735263,12.42504502,4526.9,4526.8,0.08]
[1757995735478,2.20935884,4526.2,4526.1,0.02]
[1757995735669,5.88335884,4526.2,4526.1,0.02]
[1757995735966,10.64555018,4526.2,4526.1,0.02]
[1757995736167,11.10515018,4526.2,4526.1,0.02]
[1757995736734,10.66655018,4526.2,4526.1,0.02]
[1757995736971,10.35695018,4526.2,4526.1,0.7876]
[1757995737156,10.35662756,4526.2,4526.1,0.7876]
[1757995737970,11.10482756,4526.2,4526.1,0.02]
[1757995738768,10.66622756,4526.2,4526.1,0.02]
[1757995738978,11.10482756,4526.2,4526.1,0.02]
[1757995739187,10.62946298,4526.2,4526.1,0.02]
[1757995739489,11.10537977,4526.2,4526.1,0.02]
[1757995739887,11.58217977,4526.2,4526.1,0.02]
[1757995740445,11.10537977,4526.2,4526.1,0.02]
[1757995740974,11.58217977,4526.2,4526.1,0.02]
[1757995741141,11.70027576,4526.2,4526.1,0.02]
[1757995741580,11.10537977,4526.2,4526.1,0.02]
[1757995742187,11.58217977,4526.2,4526.1,0.02]
[1757995742685,29.71141477,4526.2,4526.1,1e-08]
[1757995742860,29.71141477,4526.2,4525.1,0.02]
[1757995742861,0.792,4526.0,4525.1,0.02]
[1757995743064,2.20984707,4525.2,4525.1,0.02]
[1757995743260,11.44675121,4525.2,4525.1,0.02]
[1757995743459,7.923068,4525.2,4525.1,0.7876]
[1757995743660,12.073668,4525.2,4525.1,1.1781]
[1757995743872,11.05944707,4525.2,4525.1,1.1781]
[1757995744183,7.36844707,4525.2,4525.1,1.1781]
[1757995744478,11.05944707,4525.2,4525.1,1.1781]
[1757995744984,11.05944707,4525.2,4525.1,0.7876]
[1757995746779,11.36904707,4525.2,4525.1,0.02]
[1757995746970,12.69437359,4525.2,4525.1,0.02]
[1757995747170,2.20999359,4524.9,4524.8,0.08]
[1757995747383,8.90099359,4524.9,4524.8,0.08]
[1757995747579,9.62255783,4524.9,4524.8,0.08]
[1757995747781,10.53795783,4524.9,4524.8,0.08]
[1757995747984,10.99755783,4524.9,4524.8,0.08]
[1757995748151,10.58559359,4524.9,4524.8,0.08]
[1757995748353,10.99730751,4524.9,4524.8,0.08]
[1757995749299,10.58559359,4524.9,4524.8,0.08]
[1757995750020,10.10879359,4524.9,4524.8,0.08]
[1757995750589,10.45544744,4524.9,4524.8,0.08]
[1757995752301,10.93224744,4524.9,4524.8,0.08]
[1757995752821,10.45544744,4524.9,4524.8,0.08]
[1757995753126,26.28855067,4524.9,4524.8,1e-08]
[1757995753324,25.8791492,4524.9,4524.8,1e-08]
[1757995753495,26.42682805,4524.9,4524.8,1e-08]
[1757995753829,26.42682805,4524.9,4523.1,0.02]
[1757995753830,2.21082419,4523.2,4523.1,0.02]
[1757995754000,10.60582419,4523.2,4523.1,0.4796]
[1757995754200,10.60582419,4523.2,4523.1,1.1781]
[1757995754594,11.08542419,4523.2,4523.1,1.1781]
[1757995755110,11.19656625,4523.2,4523.1,0.02]
[1757995755288,11.19656625,4523.2,4523.1,0.4796]
[1757995755489,11.19956625,4523.2,4523.1,0.4796]
[1757995755993,11.08842419,4523.2,4523.1,0.4796]
[1757995756900,11.08842419,4523.2,4523.1,0.7876]
[1757995757126,7.39042419,4523.2,4523.1,0.7876]
[1757995757327,11.08842419,4523.2,4523.1,0.4796]
[1757995757503,7.39042419,4523.2,4523.1,0.02]
[1757995757704,11.08742419,4523.2,4523.1,0.02]
[1757995757924,11.08742419,4523.2,4523.1,0.4796]
[1757995759225,11.08742419,4523.2,4523.1,0.02]
[1757995759544,12.30942781,4523.2,4523.1,0.02]
[1757995759692,12.78622781,4523.2,4523.1,0.02]
[1757995759892,12.30942781,4523.2,4523.1,0.02]
[1757995760326,7.86422781,4523.2,4523.1,0.7731]
[1757995760761,11.56022781,4523.2,4523.1,0.7731]
[1757995761143,11.765998,4523.2,4523.1,0.7731]
[1757995761748,11.765998,4523.2,4523.1,0.7741]
[1757995762333,8.069998,4523.2,4523.1,0.7741]
[1757995762655,11.765998,4523.2,4523.1,0.7741]
[1757995762846,11.56022781,4523.2,4523.1,0.7741]
[1757995763350,7.86422781,4523.2,4523.1,0.7741]
[1757995763556,11.08642419,4523.2,4523.1,1.1646]
[1757995763769,8.8756,4523.2,4523.1,1.1646]
[1757995765127,11.08642419,4523.2,4523.1,1.1646]
[1757995765328,11.08642419,4523.2,4523.1,0.7741]
[1757995765329,7.86484524,4523.2,4523.1,0.7741]
[1757995765768,9.35002105,4523.2,4523.1,0.7741]
[1757995766370,9.35002105,4523.2,4523.1,1.1646]
[1757995767235,4.285,4523.2,4523.1,1.28906]
[1757995767688,3.59,4523.2,4523.1,1.28906]
[1757995767988,3.59,4523.2,4523.1,0.89856]
[1757995768334,3.59,4523.2,4523.1,0.7741]
[1757995768747,3.59,4523.2,4523.1,1.1646]
[1757995769370,0.1104,4523.2,4523.1,1.1646]
[1757995770536,0.1104,4523.2,4523.1,0.7741]
[1757995771997,0.47519766,4523.3,4523.1,0.7741]
[1757995772277,0.66479269,4523.4,4523.2,0.4661]
[1757995772278,3.0,4523.4,4523.2,0.4661]
[1757995772478,3.0,4523.4,4523.3,0.287]
[1757995772642,3.68160236,4523.4,4523.3,0.287]
[1757995772979,0.68160236,4523.4,4523.3,1.1436]
[1757995773162,3.77517501,4523.5,4523.3,1.1436]
[1757995773371,1.25037267,4523.5,4523.4,0.4661]
[1757995773571,3.0,4523.7,4523.4,1.1436]
[1757995773878,3.47519766,4523.7,4523.5,0.4661]
[1757995774285,3.47519766,4523.7,4523.6,0.4661]
[1757995774471,0.47519766,4523.7,4523.6,0.4661]
[1757995774781,4.25032406,4523.8,4523.6,0.4661]
[1757995774945,1.25032406,4523.8,4523.6,0.7531]
[1757995775152,0.7751264,4523.8,4523.7,0.4661]
[1757995775346,1.45684325,4523.8,4523.7,0.4661]
[1757995776696,1.45684325,4523.8,4523.7,0.7531]
[1757995778058,0.87124559,4523.8,4523.7,1.16570579]
[1757995778254,0.20651919,4523.8,4523.7,1.16570579]
[1757995778486,0.20651919,4523.8,4523.7,0.77520579]
[1757995778694,1.55312528,4524.0,4523.7,1.11284879]
[1757995778892,0.47519766,4523.9,4523.8,0.4661]
[1757995779264,0.47519766,4523.9,4523.8,0.7531]
[1757995779681,0.47519766,4523.9,4523.8,0.4661]
[1757995780063,1.55312528,4524.0,4523.8,0.4661]
[1757995780459,2.21054609,4523.8,4523.5,0.4661]
[1757995780814,2.21071571,4523.5,4523.1,0.021]
[1757995780975,0.20651919,4523.5,4523.1,0.021]
[1757995781164,0.3053,4523.2,4523.1,0.021]
[1757995781474,0.4157,4523.2,4523.1,0.021]
[1757995781670,0.8632,4523.2,4523.1,0.021]
[1757995783304,0.1104,4523.2,4523.1,0.4871]
[1757995784973,0.1104,4523.2,4523.1,0.021]
[1757995785878,0.1104,4523.2,4523.1,0.7741]
[1757995787518,0.1104,4523.2,4523.1,0.4871]
[1757995787895,0.1104,4523.2,4523.1,0.7741]
[1757995792627,0.1104,4523.2,4523.1,0.79620873]
[1757995793335,3.95097472,4523.6,4523.1,0.79620873]
[1757995793336,3.0,4523.6,4523.1,0.7741]
[1757995793504,3.0,4523.6,4523.1,1.1646]
[1757995793704,3.0,4523.6,4523.2,0.4878]
[1757995794323,3.0,4523.6,4523.5,0.2856]
[1757995794566,0.1104,4523.7,4523.5,0.7734]
[1757995794752,0.31759477,4523.7,4523.5,0.2856]
[1757995794904,0.31759477,4523.7,4523.6,0.4878]
[1757995795249,0.52482574,4523.7,4523.6,0.4878]
[1757995796610,0.52482574,4523.7,4523.4,0.4673]
[1757995796956,0.52482574,4523.7,4523.6,0.293]
[1757995797307,0.52482574,4523.7,4523.6,0.7603]
[1757995798019,0.52482574,4523.7,4523.6,2.9709287]
[1757995798381,0.002,4524.1,4523.7,2.21057822]
[1757995798665,0.002,4524.1,4523.7,18.6573]
[1757995798881,0.002,4524.1,4523.7,18.19]
[1757995799032,0.002,4524.1,4523.8,0.4673]
[1757995800180,0.002,4524.1,4523.9,0.4673]
[1757995800386,0.4626,4524.1,4523.9,0.4673]
[1757995800536,0.2965,4524.0,4523.7,18.6573]
[1757995800736,0.2965,4524.0,4523.7,18.19]
[1757995801160,0.4606,4523.9,4523.6,3.7994]
[1757995801558,0.4606,4523.8,4523.6,0.4673]
[1757995801762,0.1104,4524.0,4523.7,0.7603]
[1757995801991,0.002,4524.1,4523.8,0.4673]
[1757995802153,3.002,4524.1,4524.0,0.293]
[1757995802349,3.002,4524.1,4524.0,0.7603]
[1757995802569,0.002,4524.1,4524.0,0.7603]
[1757995804590,0.4626,4524.1,4523.8,0.4673]
[1757995804782,0.2985,4524.1,4523.8,0.4673]
[1757995804956,0.4606,4524.0,4523.8,0.4673]
[1757995805999,0.002,4524.1,4523.9,0.4673]
[1757995806310,0.002,4524.1,4523.9,0.7603]
[1757995806477,0.002,4524.1,4524.0,0.4673]
[1757995807966,0.002,4524.1,4524.0,0.7603]
[1757995808386,0.002,4524.1,4524.0,0.78240433]
[1757995808694,0.002,4524.1,4524.0,3.77092574]
[1757995809898,0.002,4524.1,4524.0,1.1699925]
[1757995810091,0.002,4524.1,4524.0,3.38042574]
[1757995810290,0.002,4524.1,4524.0,1.1699925]
[1757995810476,0.002,4524.1,4524.0,0.8707]
[1757995811095,0.002,4524.1,4524.0,0.1104]
[1757995811298,0.7591,4524.1,4524.0,0.1104]
[1757995811677,0.7591,4524.1,4523.7,0.4673]
[1757995811867,0.4606,4524.0,4523.7,4.1553]
[1757995812498,0.4606,4524.0,4523.7,0.4673]
[1757995812710,0.4606,4523.9,4523.7,0.4673]
[1757995814592,0.002,4524.1,4523.7,0.4673]
[1757995814898,0.4626,4524.1,4523.8,0.4673]
[1757995815299,0.4626,4524.1,4523.6,2.21060896]
[1757995815300,0.4626,4524.1,4523.9,0.02210482]
[1757995815500,0.4626,4524.1,4524.0,0.7603]
[1757995815501,0.002,4524.1,4524.0,0.7603]
[1757995815801,0.002,4524.1,4524.0,0.78240433]
[1757995816004,0.002,4524.1,4524.0,2.99283757]
[1757995816203,0.002,4524.1,4524.0,3.49373757]
[1757995816502,0.002,4524.1,4524.0,4.46613801]
[1757995816691,0.002,4524.1,4524.0,4.44403368]
[1757995817708,0.002,4524.1,4524.0,1.08280044]
[1757995817709,0.7591,4524.1,4524.0,1.08280044]
[1757995817882,0.5014,4524.1,4524.0,0.1104]
[1757995818085,0.002,4524.1,4524.0,0.1104]
[1757995818283,0.002,4524.1,4524.0,0.8707]
[1757995818807,0.002,4524.1,4524.0,0.5777]
[1757995819879,0.002,4524.1,4524.0,2.78813324]
[1757995820082,0.002,4524.1,4524.0,0.5777]
[1757995820411,0.002,4524.1,4524.0,2.78813324]
[1757995821508,0.002,4524.1,4524.0,3.5235446]
[1757995824109,0.002,4524.1,4524.0,1.01331136]
[1757995824411,0.002,4524.1,4524.0,2.78913324]
[1757995824778,0.002,4524.1,4524.0,0.5787]
[1757995824978,0.002,4524.1,4524.0,0.1114]
[1757995825416,0.002,4524.1,4524.0,2.32183324]
[1757995825915,0.002,4524.1,4524.0,3.7974]
[1757995826701,0.732,4524.1,4524.0,3.7974]
[1757995827722,0.2924,4524.1,4524.0,3.7974]
[1757995828026,0.732,4524.1,4524.0,3.7974]
[1757995828602,0.002,4524.1,4524.0,6.00783324]
[1757995828806,0.002,4524.1,4524.0,4.2553]
[1757995829006,0.002,4524.1,4524.0,4.2543]
[1757995829326,0.002,4524.1,4524.0,3.7964]
[1757995829521,0.002,4524.1,4524.0,6.00683324]
[1757995830497,0.002,4524.1,4524.0,6.46473324]
[1757995830694,0.002,4524.1,4524.0,4.2543]
[1757995831032,0.732,4524.1,4524.0,3.7964]
[1757995831615,0.002,4524.1,4524.0,3.7964]
[1757995831816,0.002,4524.1,4524.0,8.81522049]
[1757995832829,0.002,4524.1,4524.0,6.30498725]
[1757995833026,0.732,4524.1,4524.0,0.1114]
[1757995833235,0.002,4524.1,4524.0,2.32183324]
[1757995833535,0.002,4524.1,4524.0,2.77973324]
[1757995833737,0.002,4524.1,4524.0,6.46273324]
[1757995835028,0.732,4524.1,4524.0,3.7944]
[1757995835919,0.732,4524.1,4524.0,6.00483324]
[1757995836330,0.732,4524.1,4524.0,3.7944]
[1757995839137,0.002,4524.1,4524.0,3.7934]
[1757995839672,0.002,4524.1,4524.0,4.2513]
[1757995840034,0.2924,4524.1,4524.0,3.7934]
[1757995840228,0.732,4524.1,4524.0,3.7934]
[1757995840424,1.212,4524.1,4524.0,3.683]
[1757995840625,1.212,4524.1,4524.0,0.001]
[1757995843440,3.42238438,4524.1,4524.0,0.001]
[1757995843644,1.4191353,4524.1,4524.0,0.001]
[1757995843844,1.212,4524.1,4524.0,0.001]
[1757995844553,0.732,4524.1,4524.0,0.001]
[1757995846556,1.4191353,4524.1,4524.0,0.001]
[1757995846765,1.212,4524.1,4524.0,0.001]
[1757995847324,1.4191353,4524.1,4524.0,0.001]
[1757995848554,1.62622244,4524.1,4524.0,0.001]
[1757995848755,3.83660682,4524.1,4524.0,0.001]
[1757995849322,6.83660682,4524.1,4524.0,0.001]
[1757995849754,7.3132334,4524.1,4524.0,0.001]
[1757995852863,8.95217432,4524.1,4524.0,0.001]
[1757995853163,10.21892292,4524.1,4524.0,0.001]
[1757995853338,6.4288009,4524.1,4524.0,0.001]
[1757995854470,9.4288009,4524.1,4524.0,0.001]
[1757995854832,9.77553795,4524.1,4524.0,0.001]
[1757995855074,13.45753795,4524.1,4524.0,0.001]
[1757995856439,14.14082095,4524.1,4524.0,0.001]
[1757995859268,13.84940948,4524.1,4524.0,0.001]
[1757995859465,13.25477061,4524.1,4524.0,0.001]
[1757995859667,12.33417061,4524.1,4524.0,0.001]
[1757995859845,11.98743356,4524.1,4524.0,0.001]
[1757995860050,11.98843356,4524.1,4524.0,0.001]
[1757995860363,12.43923356,4524.1,4524.0,0.001]
[1757995860569,12.31507753,4524.1,4524.0,0.001]
[1757995861485,12.76757753,4524.1,4524.0,0.001]
[1757995861854,12.89138995,4524.1,4524.0,0.001]
[1757995862060,12.43888995,4524.1,4524.0,0.001]
[1757995862484,12.89138995,4524.1,4524.0,0.001]
[1757995863166,12.31507753,4524.1,4524.0,0.001]
[1757995863484,12.89139179,4524.1,4524.0,0.001]
[1757995863984,13.48603066,4524.1,4524.0,0.001]
[1757995864359,12.89139179,4524.1,4524.0,0.001]
[1757995865681,13.48603066,4524.1,4524.0,0.001]
[1757995865858,12.89139179,4524.1,4524.0,0.001]
[1757995869007,13.18280326,4524.1,4524.0,0.001]
[1757995869160,13.43907064,4524.1,4524.0,0.001]
[1757995869558,13.43907064,4524.1,4522.9,0.4829]
[1757995869559,2.21097083,4522.9,4521.9,0.4829]
[1757995869752,11.14094929,4522.9,4521.9,0.4829]
[1757995869968,12.83547587,4522.9,4521.9,0.4829]
[1757995870152,13.18228415,4522.9,4521.9,0.4829]
[1757995870353,13.66518415,4522.9,4521.9,0.4829]
[1757995870592,13.95659562,4522.9,4521.9,0.4829]
[1757995871385,13.95659562,4522.9,4521.1,0.4105]
[1757995871386,3.0,4522.8,4521.1,0.4105]
[1757995871556,2.21131307,4522.2,4521.6,0.4829]
[1757995871758,9.21691307,4522.2,4521.6,0.4829]
[1757995872069,10.55856209,4522.2,4521.6,0.4829]
[1757995872256,11.78537356,4522.2,4521.1,0.5029]
[1757995872456,11.90893601,4522.2,4521.3,0.4829]
[1757995873197,11.61752454,4522.2,4521.3,0.4829]
[1757995873367,11.61747566,4522.2,4521.3,0.4829]
[1757995873567,11.49396209,4522.2,4521.3,0.4829]
[1757995873880,11.61747218,4522.2,4521.3,0.4829]
[1757995874281,11.49396209,4522.2,4521.3,0.4829]
[1757995874959,11.49396209,4522.2,4521.1,0.02]
[1757995874960,11.04146209,4522.2,4521.1,0.02]
[1757995875156,11.04146209,4522.2,4521.5,0.4829]
[1757995875374,11.04146209,4522.2,4522.1,0.021]
[1757995876777,11.61739824,4522.2,4522.1,0.021]
[1757995877384,11.49396209,4522.2,4522.1,0.021]
[1757995878104,10.59066209,4522.2,4522.1,0.021]
[1757995878424,10.59066209,4522.2,4522.1,0.8011]
[1757995878425,9.31611574,4522.2,4522.1,0.8011]
[1757995878717,9.40479269,4522.2,4522.1,0.8011]
[1757995879102,5.71279269,4522.2,4522.1,0.8011]
[1757995879274,9.40479269,4522.2,4522.1,0.8011]
[1757995879675,9.8787563,4522.2,4522.1,0.8011]
[1757995879875,9.40479269,4522.2,4522.1,0.8011]
[1757995880192,9.31475557,4522.2,4522.1,0.8011]
[1757995880501,5.62278478,4522.2,4522.1,0.8011]
[1757995880687,5.92448478,4522.2,4522.1,0.021]
[1757995880867,10.85619625,4522.2,4522.1,0.021]
[1757995881070,11.45367167,4522.2,4522.1,0.021]
[1757995881302,11.45368251,4522.2,4522.1,0.021]
[1757995881703,12.24568251,4522.2,4522.1,0.021]
[1757995881904,12.83972892,4522.2,4522.1,0.021]
[1757995882574,3.792,4521.8,4521.6,0.001]
[1757995882816,12.48216265,4521.7,4521.6,0.001]
[1757995882982,44.20719442,4521.7,4521.6,0.001]
[1757995883299,29.40268986,4521.7,4521.6,0.001]
[1757995884184,29.40268986,4521.7,4520.8,1e-08]
[1757995884185,2.21187358,4521.1,4520.8,1e-08]
[1757995884399,9.66194894,4520.9,4520.8,1e-08]
[1757995884600,26.61491229,4520.9,4520.8,1e-08]
[1757995884819,27.85562376,4520.9,4520.8,1e-08]
[1757995885533,0.792,4520.2,4520.1,1e-08]
[1757995885844,0.792,4520.0,4518.9,0.4929]
[1757995885999,2.21278102,4519.2,4519.1,0.5129]
[1757995886196,10.63478102,4519.2,4519.1,0.8156]
[1757995887336,11.30029782,4519.2,4519.1,0.8156]
[1757995888001,9.0875168,4519.2,4519.1,0.8156]
[1757995888193,0.792,4519.8,4519.1,0.8156]
[1757995888194,1.18809282,4520.8,4519.1,0.8156]
[1757995888395,5.93341173,4520.0,4519.2,0.8834]
[1757995888631,5.21244869,4519.9,4519.3,0.4929]
[1757995888926,3.0,4519.7,4519.3,0.4929]
[1757995889114,5.21264947,4519.5,4519.3,0.4929]
[1757995889305,6.73,4519.4,4519.3,0.4929]
[1757995889515,6.73,4519.4,4519.3,0.7956]
[1757995889839,6.732,4519.4,4519.3,1.1861]
[1757995890225,3.0,4519.4,4519.3,1.1861]
[1757995890542,6.732,4519.4,4519.3,1.30671]
[1757995890745,3.0,4519.4,4519.3,3.51944206]
[1757995891052,3.732,4519.6,4519.3,1.30671]
[1757995891198,3.732,4519.6,4519.4,0.02212683]
[1757995891398,3.732,4519.6,4519.4,0.90552683]
[1757995891629,1.701,4520.1,4519.5,0.3027]
[1757995891946,3.0,4519.9,4519.6,0.90552585]
[1757995892143,1.701,4520.1,4519.8,0.3027]
[1757995892398,3.0,4519.9,4519.8,0.3027]
[1757995892892,3.0,4519.9,4519.8,1.1861]
[1757995893400,1.701,4520.1,4519.8,1.1861]
[1757995893696,6.732,4519.9,4519.8,0.3027]
[1757995893852,6.732,4519.9,4519.8,0.3037]
[1757995894361,6.732,4519.9,4519.8,1.1871]
[1757995894362,6.8424,4519.9,4519.8,1.1871]
[1757995894563,3.1104,4519.9,4519.8,3.12779727]
[1757995894781,3.0,4519.9,4519.8,3.51829727]
[1757995898778,3.0,4519.9,4519.8,1.30581]
[1757995898980,3.0,4519.9,4519.8,0.91531]
[1757995900885,3.0,4519.9,4519.8,0.7966]
[1757995901085,3.0,4519.9,4519.8,0.001]
[1757995902104,6.728,4519.9,4519.8,0.001]
[1757995903007,7.4906,4519.9,4519.8,0.001]
[1757995903713,7.0297,4519.9,4519.8,0.001]
[1757995904634,7.4906,4519.9,4519.8,0.001]
[1757995905312,9.70303832,4519.9,4519.8,0.001]
[1757995906314,7.0297,4519.9,4519.8,0.001]
[1757995906494,9.70303832,4519.9,4519.8,0.001]
[1757995906915,7.0297,4519.9,4519.8,0.001]
[1757995907603,3.0,4519.9,4519.8,0.7966]
[1757995908303,3.0,4519.9,4519.8,0.001]
[1757995908612,3.3017,4519.9,4519.8,0.001]
[1757995908980,3.0,4519.9,4519.8,0.001]
[1757995909186,3.0,4519.9,4519.8,0.4939]
[1757995909886,3.0,4519.9,4519.8,0.7966]
[1757995911219,3.20620737,4519.9,4519.8,0.7966]
[1757995911524,3.0,4519.9,4519.8,0.7966]
[1757995912219,3.20628439,4519.9,4519.8,0.7966]
[1757995912522,3.0,4519.9,4519.8,0.7966]
[1757995913628,3.002,4519.9,4519.8,0.7966]
[1757995915543,3.002,4519.9,4519.8,0.001]
[1757995915727,3.002,4519.9,4519.8,0.7743]
[1757995915934,7.0318,4519.9,4519.8,0.001]
[1757995916120,3.20833436,4519.9,4519.8,0.001]
[1757995916319,3.002,4519.9,4519.8,0.001]
[1757995916844,3.20842518,4519.9,4519.8,0.001]
[1757995918757,3.68461031,4519.9,4519.8,0.001]
[1757995919127,3.47818513,4519.9,4519.8,0.001]
[1757995919331,3.41554907,4519.9,4519.8,0.001]
[1757995919863,3.8917342,4519.9,4519.8,0.001]
[1757995920961,3.8917342,4519.9,4519.8,0.4884]
[1757995921174,3.68490565,4519.9,4519.8,0.7743]
[1757995921462,3.79530565,4519.9,4519.8,0.4884]
[1757995921910,3.31912052,4519.9,4519.8,0.001]
[1757995924468,4.10722052,4519.9,4519.8,0.001]
[1757995924624,12.18330876,4519.9,4519.8,0.001]
[1757995924817,11.84853692,4519.9,4519.8,0.001]
[1757995925148,11.59226954,4519.9,4519.8,0.001]
[1757995925722,11.30061681,4519.9,4519.8,0.001]
[1757995926282,12.09345414,4519.9,4519.8,0.001]
[1757995926441,11.30061681,4519.9,4519.8,0.001]
[1757995928486,11.78452619,4519.9,4519.8,0.001]
[1757995930367,10.70991681,4519.9,4519.8,0.001]
[1757995930547,6.53611681,4519.9,4519.8,0.001]
[1757995930873,6.94731681,4519.9,4519.8,0.4884]
[1757995931191,7.70791681,4519.9,4519.8,0.001]
[1757995931345,11.18821681,4519.9,4519.8,0.001]
[1757995933270,11.18721682,4519.9,4519.8,0.001]
[1757995936473,9.94631682,4519.9,4519.8,0.4884]
[1757995936797,10.70691682,4519.9,4519.8,0.001]
[1757995937159,9.94631682,4519.9,4519.8,0.001]
[1757995937519,9.94631682,4519.9,4519.8,0.4884]
[1757995938296,10.70691682,4519.9,4519.8,0.001]
[1757995939999,9.94631682,4519.9,4519.8,0.001]
[1757995940198,9.82253512,4519.9,4519.8,0.001]
[1757995940398,9.82253512,4519.9,4519.8,0.4876]